fUSD/lending_fUSD_20240508
["ID","MTS","AMOUNT","RATE_DAILY","PERIOD"]
[326647417,1715197843870,-250.0,0.00014826,2]
[326647418,1715197843879,-527.98,0.00014927,2]
[326647419,1715197843888,-527.98,0.0001493,2]
[326647420,1715197843897,-527.98,0.00014934,2]
[326647421,1715197843908,-527.98,0.00014938,2]
[326647422,1715197843919,-527.98,0.00014942,2]
[326647423,1715197843928,-527.98,0.00014946,2]
[326647424,1715197843937,-527.98,0.0001495,2]
[326647425,1715197843946,-527.98,0.00014954,2]
[326647426,1715197843957,-527.98,0.00014958,2]
[326647427,1715197843966,-527.98,0.00014962,2]
[326647428,1715197843975,-527.98,0.00014966,2]
[326647429,1715197843984,-527.98,0.0001497,2]
[326647430,1715197843995,-527.98,0.00014974,2]
[326647431,1715197844004,-527.98,0.00014977,2]
[326647432,1715197844013,-527.98,0.00014981,2]
[326647433,1715197844022,-527.98,0.00014985,2]
[326647434,1715197844031,-527.98,0.00014989,2]
[326647435,1715197844041,-527.98,0.00014993,2]
[326647436,1715197844050,-527.98,0.00014997,2]
[326647437,1715197844059,-527.98,0.00015001,2]
[326647438,1715197844068,-688.20222891,0.00015167,2]
[326647439,1715197844077,-7075.31,0.00015201,2]
[326647440,1715197844087,-1000.0,0.00015723,2]
[326647441,1715197844097,-170.05,0.00015765,2]
[326647442,1715197844106,-3540.0,0.00017,2]
[326647443,1715197844115,-1000.0,0.00017295,2]
[326647444,1715197844125,-688.20222891,0.00017296,2]
[326647445,1715197844135,-430.94049648,0.0001788,2]
[326647446,1715197844145,-430.94049646,0.0001788,2]
[326647447,1715197844154,-430.94049646,0.0001788,2]
[326647448,1715197844164,-430.94049646,0.0001788,2]
[326647449,1715197844173,-430.94049646,0.0001788,2]
[326647450,1715197844183,-430.94049646,0.0001788,2]
[326647451,1715197844193,-7075.31,0.00017941,2]
[326647452,1715197844203,-1050.0,0.00018,3]
[326647453,1715197844212,-170.05,0.00018393,2]
[326647454,1715197844222,-430.94049646,0.00018492,2]
[326647455,1715197844231,-1000.0,0.00018868,2]
[326647456,1715197844241,-155.58,0.00019178,2]
[326647457,1715197844251,-161.45,0.00019178,2]
[326647458,1715197844260,-688.20222891,0.00019425,2]
[326647459,1715197844269,-430.94049646,0.00019628,2]
[326647460,1715197844279,-181.9451404,0.00019798,2]
[326647461,1715197844289,-1100.0,0.0002,3]
[326647462,1715197844299,-155.83,0.00020134,2]
[326647463,1715197844308,-2170.9274,0.00020521,2]
[326647464,1715197844318,-341.64,0.00020546,2]
[326647465,1715197844327,-430.94049646,0.00020764,2]
[326647466,1715197844336,-955.02743439,0.00020896,2]
[326647467,1715197844346,-537614.5881463,0.00021,3]
[326647468,1715197844356,-170.05,0.0002102,2]
[326647469,1715197844365,-19543.45,0.0002117,5]
[326647470,1715197844374,-4207.8316203,0.0002141,5]
[326647471,1715197844383,-688.20222891,0.00021554,2]
[326647472,1715197844393,-545.6366166,0.00021554,2]
[326647473,1715197844402,-10000.0,0.00021555,2]
[326647474,1715197844412,-468.03057049,0.00021562,2]
[326647475,1715197844421,-152.18,0.00021589,15]
[326647476,1715197844430,-468.03057048,0.00021593,2]
[326647477,1715197844439,-15000.0,0.000216,2]
[326647478,1715197844449,-468.03057048,0.00021623,2]
[326647479,1715197844459,-163.15,0.0002164,2]
[326647480,1715197844468,-517911.25013007,0.0002165,5]
[326647481,1715197844482,-335.2327,0.0002165,5]
[326647482,1715197844493,-1022.04087,0.0002165,5]
[326647483,1715197844547,-153140.30463057,0.0002165,5]
[326647484,1715197844632,-707442.17207355,0.0002165,5]
[326647485,1715197844653,-468.03057048,0.00021654,2]
[326647486,1715197844665,-655.61,0.00021662,2]
[326647487,1715197844676,-655.61,0.00021668,2]
[326647488,1715197844685,-655.61,0.00021674,2]
[326647489,1715197844694,-655.61,0.00021679,2]
[326647490,1715197844703,-468.03057048,0.00021685,2]
[326647491,1715197844710,-655.61,0.00021685,2]
[326647492,1715197844719,-655.61,0.00021691,2]
[326647493,1715197844728,-655.61,0.00021696,2]
[326647494,1715197844738,-357.73,0.000217,2]
[326647495,1715197844747,-215.84,0.000217,2]
[326647496,1715197844756,-294.88,0.000217,2]
[326647497,1715197844765,-1000.0,0.000217,2]
[326647498,1715197844774,-655.61,0.00021702,2]
[326647499,1715197844784,-655.61,0.00021708,2]
[326647500,1715197844793,-655.61,0.00021714,2]
[326647501,1715197844802,-468.03057048,0.00021716,2]
[326647502,1715197844811,-655.61,0.00021719,2]
[326647503,1715197844820,-655.61,0.00021725,2]
[326647504,1715197844829,-176.18542094,0.00021727,2]
[326647505,1715197844838,-545.63661658,0.00021727,2]
[326647506,1715197844847,-655.61,0.00021731,2]
[326647507,1715197844856,-655.61,0.00021736,2]
[326647508,1715197844866,-655.61,0.00021742,2]
[326647509,1715197844875,-468.03057048,0.00021746,2]
[326647510,1715197844885,-655.61,0.00021748,2]
[326647511,1715197844894,-655.61,0.00021753,2]
[326647512,1715197844903,-655.61,0.00021759,2]
[326647513,1715197844919,-655.61,0.00021765,2]
[326647514,1715197844928,-228312.323902,0.0002177,5]
[326647515,1715197844944,-73011.53337408,0.0002177,5]
[326647516,1715197844956,-20360.99278176,0.0002177,5]
[326647517,1715197844967,-3940.47964354,0.0002177,5]
[326647518,1715197844979,-999.70844943,0.0002177,5]
[326647519,1715197844992,-1505.51254923,0.0002177,5]
[326647520,1715197845004,-4608.4,0.0002177,5]
[326647521,1715197845015,-586.80049511,0.0002177,5]
[326647522,1715197845026,-409.45999997,0.0002177,5]
[326647523,1715197845038,-249411.84730583,0.0002177,5]
[326647524,1715197845047,-2067.04359454,0.0002177,2]
[326647525,1715197845056,-655.61,0.00021771,2]
[326647526,1715197845065,-20182.42610569,0.00021776,2]
[326647527,1715197845074,-468.03057048,0.00021777,2]
[326647528,1715197845084,-787.54824769,0.0002178,2]
[326647529,1715197845093,-468.03057048,0.00021808,2]
[326647530,1715197845102,-200.0,0.00021824,2]
[326647531,1715197845112,-200.0,0.00021824,2]
[326647532,1715197845121,-1000.0,0.00021824,2]
[326647533,1715197845130,-500.0,0.00021824,2]
[326647534,1715197845139,-200.0,0.00021824,2]
[326647535,1715197845149,-468.03057048,0.00021839,2]
[326647536,1715197845159,-1560.64174384,0.00021866,2]
[326647537,1715197845169,-468.03057048,0.00021869,2]
[326647538,1715197845178,-60718.08786523,0.00021898,2]
[326647539,1715197845189,-112539.18203477,0.00021898,2]
[326647540,1715197845198,-1244.6208,0.00021898,2]
[326647541,1715197845208,-1228.0,0.000219,2]
[326647542,1715197845217,-1082.0595,0.000219,2]
[326647543,1715197845227,-2826.1052,0.000219,2]
[326647544,1715197845237,-1000.0,0.000219,2]
[326647545,1715197845248,-10000.0,0.000219,2]
[326647546,1715197845258,-300.0,0.000219,2]
[326647547,1715197845269,-210.9973,0.000219,2]
[326647548,1715197845278,-1000.0,0.000219,2]
[326647549,1715197845288,-468.03057048,0.000219,2]
[326647550,1715197845298,-430.94049646,0.000219,2]
[326647551,1715197845307,-176.18542094,0.000219,2]
[326647552,1715197845320,-545.63661658,0.000219,2]
[326647553,1715197845329,-250.0,0.00021918,2]
[326647554,1715197845339,-2067.41781312,0.00021932,2]
[326647555,1715197845349,-156.71892795,0.00021932,2]
[326647556,1715197845359,-2528.0928301,0.00021976,2]
[326647557,1715197845369,-1017.42,0.00021991,2]
[326647558,1715197845379,-2329.598,0.00021991,2]
[326647559,1715197845389,-1413.335,0.00021991,2]
[326647560,1715197845398,-1788.0,0.00021991,2]
[326647561,1715197845408,-545.734,0.00021991,2]
[326647562,1715197845418,-1226.0,0.00021991,2]
[326647563,1715197845428,-209.0,0.00021991,2]
[326647564,1715197845438,-438.0,0.00021991,2]
[326647565,1715197845448,-809.0,0.00021991,2]
[326647566,1715197845458,-611.0,0.00021991,2]
[326647567,1715197845467,-421.0,0.00021991,2]
[326647568,1715197845477,-150.0,0.00021991,2]
[326647569,1715197845487,-1478.0,0.00021991,2]
[326647570,1715197845496,-2450.0,0.00021991,2]
[326647571,1715197845506,-444.0,0.00021991,2]
[326647572,1715197845515,-1129.0,0.00021991,2]
[326647573,1715197845525,-1645.0,0.00021991,2]
[326647574,1715197845534,-215.0,0.00021991,2]
[326647575,1715197845544,-3141.634,0.00021991,2]
[326647576,1715197845553,-871.098,0.00021991,2]
[326647577,1715197845563,-687.851,0.00021991,2]
[326647578,1715197845572,-206.454,0.00021991,2]
[326647579,1715197845582,-2293.0,0.00021991,2]
[326647580,1715197845592,-2357.1227683,0.00021996,2]
[326647581,1715197845601,-615.59506973,0.00021996,2]
[326647582,1715197845610,-622.01146866,0.00021996,2]
[326647583,1715197845619,-299.99666325,0.00021996,2]
[326647584,1715197845629,-8791.03966291,0.00021996,2]
[326647585,1715197845639,-155.0,0.00021996,2]
[326647586,1715197845649,-155.0,0.00021996,2]
[326647587,1715197845659,-155.0,0.00021996,2]
[326647588,1715197845670,-1532.67439124,0.00021996,2]
[326647589,1715197845680,-2362.15552941,0.00021996,2]
[326647590,1715197845690,-155.0,0.00021996,2]
[326647591,1715197845699,-3082.73013439,0.00021996,2]
[326647592,1715197845709,-194.53284169,0.00021996,2]
[326647593,1715197845718,-248.485701,0.00021996,2]
[326647594,1715197845728,-250.21803071,0.00021996,2]
[326647595,1715197845738,-470.28425654,0.00021996,2]
[326647596,1715197845748,-248.35796841,0.00021996,2]
[326647597,1715197845757,-240.71304375,0.00021996,2]
[326647598,1715197845767,-164.14462552,0.00021996,2]
[326647599,1715197845777,-317.50862952,0.00021996,2]
[326647600,1715197845787,-155.87468371,0.00021996,2]
[326647601,1715197845797,-307.54,0.00021996,2]
[326647602,1715197845807,-166.6544222,0.00021996,2]
[326647603,1715197845816,-1000.0,0.00021997,2]
[326647604,1715197845826,-1000.0,0.00021997,2]
[326647605,1715197845910,-1000.0,0.00021997,2]
[326647606,1715197845920,-1000.0,0.00021997,2]
[326647607,1715197845930,-1000.0,0.00021997,2]
[326647608,1715197845939,-1000.0,0.00021997,2]
[326647609,1715197845948,-1000.0,0.00021997,2]
[326647610,1715197845958,-1000.0,0.00021997,2]
[326647611,1715197845967,-1000.0,0.00021997,2]
[326647612,1715197845976,-1000.0,0.00021997,2]
[326647613,1715197845986,-1000.0,0.00021997,2]
[326647614,1715197845996,-1030.0,0.00021997,2]
[326647615,1715197846005,-1268.0,0.00021997,2]
[326647616,1715197846014,-1270.56596455,0.00021998,2]
[326647617,1715197846024,-405.31529438,0.00021998,2]
[326647618,1715197846033,-312357.29828458,0.00021998,2]
[326647619,1715197846043,-7505.26883546,0.00021998,2]
[326647620,1715197846053,-1212.39834275,0.00021999,2]
[326647621,1715197846064,-207.70279797,0.00021999,2]
[326647622,1715197846073,-3095.68038507,0.00021999,2]
[326647623,1715197846084,-914220.47045042,0.00022,5]
[326647624,1715197846096,-4962.52051354,0.00022,5]
[326647625,1715197846108,-2481.26025677,0.00022,5]
[326647626,1715197846119,-32542.82611893,0.00022,5]
[326647627,1715197846130,-20553.45516,0.00022,5]
[326647628,1715197846141,-21596.40641486,0.00022,5]
[326647629,1715197846152,-3757.48353988,0.00022,5]
[326647630,1715197846372,-0.12233089,0.00022,5]
[326647631,1715197846383,-4092.75691517,0.00022,5]
[326647632,1715197846395,-3059.30000001,0.00022,5]
[326647635,1715197853019,-202.59134219,0.00017259,2]
[326647638,1715197853034,-5652.86420851,0.00021555,2]
[326647642,1715197853049,-243.49075667,0.00021999,2]
[326647647,1715197853064,-290658.5087276,0.00022,5]
[326647650,1715197853081,-630.0,0.00022,5]
[326647652,1715197853100,-1232.22643591,0.00022,5]
[326647655,1715197853117,-14619.95192403,0.00022,5]
[326647658,1715197853134,-13561.47766172,0.00022,5]
[326647660,1715197853151,-185920.59535284,0.00022,5]
[326647663,1715197853169,-823.29,0.00022,5]
[326647664,1715197853186,-1525.02989217,0.00022,5]
[326647665,1715197853204,-1982.0994527,0.00022,5]
[326647666,1715197857248,-585.22668101,0.000219,2]
[326647675,1715197857260,-1002.95637963,0.000219,2]
[326647678,1715197857271,-1053.0,0.00022,2]
[326647682,1715197857280,-5852.69943588,0.00022,5]
[326647686,1715197857292,-4803.45941549,0.00022,5]
[326647690,1715197857304,-632.53699517,0.00022,5]
[326647695,1715197857317,-1934.15722085,0.00022,5]
[326647698,1715197857328,-2759.5004898,0.00022,5]
[326647702,1715197857339,-15863.24888545,0.00022,5]
[326647705,1715197857351,-79131.11155837,0.00022,5]
[326647709,1715197857362,-3959.850002,0.00022,5]
[326647712,1715197857374,-11451.47465665,0.00022,5]
[326647715,1715197857385,-2245.5336603,0.00022,5]
[326647717,1715197857397,-538.2731748,0.00022,5]
[326647721,1715197857408,-636.87818,0.00022,5]
[326647723,1715197857420,-4595.0806176,0.00022,5]
[326647725,1715197857434,-630.63,0.00022,5]
[326647727,1715197857445,-5972.60867431,0.00022,5]
[326647729,1715197857457,-1314.23434236,0.00022,5]
[326647740,1715197857574,-593.0189807,0.00022,5]
[326647745,1715198682745,-469.87431229,0.0003,120]
[326647746,1715198684013,-832.13626007,0.0003,120]
[326647747,1715198684137,-1208.0,0.00032005,30]
[326647748,1715198684225,-157.71922568,0.00033,120]
[326647749,1715198684299,-155.83,0.00033548,120]
[326647750,1715198684383,-899.55438277,0.0003498,30]
[326647751,1715198684444,-450.0,0.0003502,30]
[326647752,1715198684531,-1266.85001961,0.00036498,36]
[326647753,1715198684600,-445.82202784,0.00037,30]
[326647754,1715198684663,-2641.0,0.00037,60]
[326647755,1715198684730,-450.0,0.000375,30]
[326647756,1715198684796,-523.67392726,0.00038,30]
[326647757,1715198684864,-883.00567932,0.000389,30]
[326647758,1715198684934,-1000.0,0.00038904,120]
[326647759,1715198684997,-518.32502057,0.0003895,120]
[326647760,1715198685065,-459.12847989,0.000397,60]
[326647761,1715198685127,-674.22016985,0.0003998,30]
[326647762,1715198685196,-194.29176272,0.0004,120]
[326647763,1715198685255,-2878.7514067,0.0004,30]
[326647764,1715198685316,-394.15021194,0.0004,30]
[326647765,1715198685375,-3116.30686944,0.0004,120]
[326647766,1715198685436,-201.58102916,0.0004,30]
[326647767,1715198685496,-367.26299635,0.0004,30]
[326647768,1715198685557,-157.94863373,0.0004,30]
[326647769,1715198685618,-1025.81689689,0.0004,120]
[326647770,1715198685676,-882.11529631,0.0004,30]
[326647771,1715198685734,-741.44577528,0.0004,30]
[326647772,1715198685791,-604.39401281,0.0004,120]
[326647773,1715198685850,-320.08525693,0.0004,30]
[326647774,1715198685914,-2905.1,0.00040327,79]
[326647775,1715198685975,-1180.14915875,0.000409,60]
[326647776,1715198686034,-822.70136939,0.00040993,120]
[326647777,1715198686092,-587.17173335,0.00040996,120]
[326647778,1715198686155,-500.0,0.00041,60]
[326647779,1715198686592,-385.03421693,0.00041,30]
[326647780,1715198686654,-33430.74153542,0.00041,44]
[326647781,1715198686712,-500.0,0.00041,120]
[326647782,1715198686870,-380.56913847,0.00041,60]
[326647783,1715198686929,-3001.76209601,0.00041,120]
[326647784,1715198686988,-1304.78954659,0.00041,30]
[326647785,1715198687055,-1000.0,0.00041096,60]
[326647786,1715198687114,-1200.0,0.00041304,30]
[326647787,1715198687176,-150.0,0.0004134,30]
[326647788,1715198687243,-150.0,0.0004134,30]
[326647789,1715198687304,-500.0,0.000416,61]
[326647790,1715198687364,-600000.0,0.0004169,120]
[326647791,1715198687425,-150.0,0.00041693,30]
[326647792,1715198687484,-1200.0,0.00041852,30]
[326647793,1715198687540,-1088.69877766,0.00041869,40]
[326647794,1715198687598,-1000.0,0.00041991,120]
[326647795,1715198687658,-3025642.8647986,0.00041992,30]
[326647796,1715198687716,-552.0,0.00041992,30]
[326647797,1715198687776,-844.0,0.00041992,30]
[326647798,1715198687836,-215.40285468,0.00041992,30]
[326647799,1715198687899,-500.0,0.00041992,30]
[326647800,1715198688578,-10153.07420689,0.00041999,120]
[326647801,1715198690254,-13172.992877,0.00042,30]
[326647802,1715198691470,-950.0,0.00042,120]
[326647803,1715198692662,-20000.0,0.00042,30]
[326647804,1715198693766,-500.0,0.00042,120]
[326647805,1715198694889,-541.0465206,0.00042,120]
[326647806,1715198696398,-1000000.0,0.00042,30]
[326647807,1715198697593,-251572.61151625,0.00042,35]
[326647808,1715198705807,-162.65393288,0.00041,60]
[326647809,1715198706552,-748427.38848375,0.00042,35]
[326647810,1715198708041,-2000.0,0.00042,30]
[326647811,1715198708726,-32896.05652925,0.00042,30]
[326647812,1715198709461,-2980.96480078,0.00042,120]
[326647813,1715198709520,-2000.0,0.00042,60]
[326647814,1715198709583,-7563.50593117,0.00042,120]
[326647815,1715198709641,-10000.0,0.00042,60]
[326647816,1715198709700,-565555.33090753,0.00042,120]
[326647817,1715198709762,-1547304.66276736,0.00042,90]
[326647818,1715198709820,-18118.21,0.00042,30]
[326647819,1715198709879,-150.0,0.00042047,30]
[326647820,1715198710823,-290.2460749,0.000421,30]
[326647821,1715198712975,-1876.0,0.000421,30]
[326647822,1715198714463,-900.0,0.00042126,30]
[326647823,1715198715453,-10030.5380238,0.000422,120]
[326647824,1715198716720,-405.75919471,0.0004226,120]
[326647825,1715198717472,-150.0,0.00042261,120]
[326647826,1715198718673,-240.377,0.0004238,120]
[326647827,1715198719541,-500.0,0.00042399,120]
[326647828,1715198719600,-386332.92004596,0.000424,30]
[326647829,1715198719660,-1000.00367988,0.000424,30]
[326647830,1715198719720,-686.99704275,0.000424,120]
[326647831,1715198719777,-1200.0,0.000424,30]
[326647832,1715198719836,-183.53875837,0.000424,30]
[326647833,1715198719894,-164.77093372,0.000424,30]
[326647834,1715198719952,-16000.0,0.000424,30]
[326647835,1715198720011,-151.0,0.000424,38]
[326647836,1715198720070,-161.64812051,0.000424,30]
[326647837,1715198720134,-154.12987843,0.000424,30]
[326647838,1715198720970,-1000000.0,0.000425,40]
[326647839,1715198721124,-642413.29789425,0.000425,45]
[326647849,1715199039781,-7837.55410146,0.00011937,2]
[326647852,1715199039794,-521.58543059,0.00011937,2]
[326647854,1715199039804,-126.86460541,0.00011938,2]
[326647875,1715199040610,-2418.1409,0.00011938,2]
[326647909,1715199042097,-1451.8542977,0.00011938,2]
[326647912,1715199042109,-1569.68763128,0.00011938,2]
[326647914,1715199042119,-159.71369038,0.00014727,2]
[326647917,1715199042129,-155.83,0.00014826,2]
[326647919,1715199042139,-184.6,0.00014826,2]
[326647920,1715199042149,-250.0,0.00014826,2]
[326647922,1715199042158,-1041.33176482,0.00015,2]
[326647924,1715199042173,-240.99691302,0.00017014,2]
[326647926,1715199042198,-28.18655998,0.00017014,2]
[326647927,1715199042210,-808.0,0.000171,2]
[326647930,1715199042222,-32.36766336,0.00017298,2]
[326647932,1715199042237,-152.23233664,0.00017298,2]
[326647934,1715199042251,-999.99,0.00017534,2]
[326647935,1715199042261,-9999.99,0.00017534,2]
[326647936,1715199042270,-1656.34,0.00017672,2]
[326647937,1715199042281,-1050.0,0.00018,3]
[326647938,1715199042292,-10076.6397144,0.00018348,2]
[326647939,1715199042303,-263.95,0.00019178,2]
[326647940,1715199042313,-20548.0,0.00019726,4]
[326647941,1715199042323,-184.6,0.00019769,2]
[326647942,1715199042336,-1100.0,0.0002,3]
[326647943,1715199042347,-184.09,0.00020095,2]
[326647944,1715199042357,-158.32075683,0.00021502,2]
[326647945,1715199042367,-152.18,0.00021589,15]
[326647946,1715199042378,-200.0,0.00021824,2]
[326647947,1715199042389,-1000.0,0.00021824,2]
[326647948,1715199042399,-200.0,0.00021824,2]
[326647949,1715199042409,-500.0,0.00021824,2]
[326647950,1715199042420,-200.0,0.00021824,2]
[326647951,1715199042430,-2356.03750157,0.00021899,2]
[326647952,1715199042446,-10000.0,0.000219,2]
[326647953,1715199042457,-2621.975,0.000219,2]
[326647954,1715199042467,-1999.999,0.000219,7]
[326647955,1715199042477,-2227.42341079,0.000219,2]
[326647956,1715199042488,-491.9903286,0.000219,2]
[326647957,1715199042498,-250.0,0.00021918,2]
[326647958,1715199042508,-667.222,0.00021991,2]
[326647959,1715199042518,-543.0,0.00021991,2]
[326647960,1715199042527,-173.641,0.00021991,2]
[326647961,1715199042537,-209.0,0.00021991,2]
[326647962,1715199042547,-421.0,0.00021991,2]
[326647963,1715199042557,-809.0,0.00021991,2]
[326647964,1715199042567,-611.0,0.00021991,2]
[326647965,1715199042577,-438.0,0.00021991,2]
[326647966,1715199042590,-1477.0,0.00021991,2]
[326647967,1715199042600,-2431.0,0.00021991,2]
[326647968,1715199042610,-444.0,0.00021991,2]
[326647969,1715199042621,-918.573,0.00021991,2]
[326647970,1715199042631,-37800.0,0.00021991,2]
[326647971,1715199042641,-155.19444592,0.00021998,2]
[326647972,1715199042651,-1270.56596455,0.00021998,2]
[326647973,1715199042661,-642.3977412,0.00021998,2]
[326647974,1715199042671,-967.37588859,0.00021998,2]
[326647975,1715199042681,-155.0,0.00021998,2]
[326647976,1715199042699,-1212.39834275,0.00021998,2]
[326647977,1715199042709,-188.65310695,0.00021998,2]
[326647978,1715199042720,-7505.26883546,0.00021998,2]
[326647979,1715199042730,-5000.0,0.00021998,2]
[326647980,1715199042740,-155.0,0.00021998,60]
[326647981,1715199042750,-161.80076929,0.00021998,2]
[326647982,1715199042760,-207.70279797,0.00021999,2]
[326647983,1715199042770,-3095.68038507,0.00021999,2]
[326647984,1715199042780,-12291.18028366,0.00021999,2]
[326647985,1715199042790,-946.0,0.00022,2]
[326647986,1715199042800,-457615.82974384,0.00022,7]
[326647987,1715199042811,-321222.27845759,0.00022,5]
[326647988,1715199042824,-31514.86438022,0.00022,5]
[326647989,1715199042837,-18222.9646,0.00022,5]
[326647990,1715199042850,-387.2,0.00022,5]
[326648010,1715199054821,-365.89,0.00014826,2]
[326648011,1715199054831,-7500.0,0.000219,2]
[326648012,1715199054841,-13203.6140039,0.00022,5]
[326648013,1715199054853,-1495.84,0.00022,5]
[326648014,1715199054865,-3023.34891674,0.00022,5]
[326648015,1715199054878,-250.431864,0.00022,5]
[326648016,1715199054890,-279.22770864,0.00022,5]
[326648635,1715199061811,-24364385.77847978,0.00022,5]
[326651908,1715199119811,-155.0,0.00021998,60]
[326651909,1715199119986,-341.53062545,0.00028,30]
[326651910,1715199120127,-1345.25767558,0.0003,30]
[326651911,1715199120303,-385.0,0.00030234,120]
[326651912,1715199120423,-385.0,0.00030827,120]
[326651913,1715199120485,-1208.0,0.00030932,30]
[326651914,1715199120557,-385.0,0.0003142,120]
[326651915,1715199120630,-385.0,0.00032012,120]
[326651916,1715199120722,-385.0,0.00032605,120]
[326651917,1715199120798,-170.56730026,0.00032767,30]
[326651918,1715199123193,-2000.0,0.00032876,90]
[326651919,1715199124546,-2000.0,0.00032876,90]
[326651920,1715199127191,-2000.0,0.00032876,90]
[326651921,1715199127840,-2000.0,0.00032876,90]
[326651922,1715199129678,-2000.0,0.00032876,90]
[326651923,1715199130908,-2000.0,0.00032876,90]
[326651924,1715199130968,-2000.0,0.00032876,90]
[326651925,1715199131025,-2000.0,0.00032876,90]
[326651926,1715199131085,-197.89,0.00032876,90]
[326651927,1715199134544,-210.28525092,0.000329,30]
[326651928,1715199137567,-170.56730026,0.00032904,30]
[326651929,1715199140173,-170.56730026,0.00033041,30]
[326651930,1715199141354,-170.56730026,0.00033178,30]
[326651931,1715199141980,-385.0,0.00033198,120]
[326651932,1715199142038,-170.56730026,0.00033315,30]
[326651933,1715199142107,-170.56730026,0.00033452,30]
[326651934,1715199142167,-170.56730026,0.00033589,30]
[326651935,1715199142224,-170.56730026,0.00033726,30]
[326651936,1715199142287,-385.0,0.00033791,120]
[326651937,1715199142348,-170.56730026,0.00033863,30]
[326651938,1715199142413,-170.56730026,0.00034,30]
[326651939,1715199142473,-170.56730026,0.00034137,30]
[326651940,1715199142558,-170.56730026,0.00034274,30]
[326651941,1715199142643,-385.0,0.00034384,120]
[326651942,1715199142725,-170.56730026,0.00034411,30]
[326651943,1715199142790,-170.56730026,0.00034548,30]
[326651944,1715199142850,-170.56730026,0.00034685,30]
[326651945,1715199142907,-385.0,0.00034976,120]
[326651946,1715199142965,-899.55438277,0.0003498,30]
[326651947,1715199143021,-198.68404072,0.00034999,120]
[326651948,1715199143078,-450.0,0.0003502,30]
[326651949,1715199143145,-386.95131363,0.00035569,120]
[326651950,1715199143204,-2102.08227525,0.000356,30]
[326651951,1715199143377,-450.0,0.000375,30]
[326651952,1715199143443,-33630.58253055,0.00038,90]
[326651953,1715199143503,-199.27450638,0.0003816,30]
[326651954,1715199143563,-2000.0,0.00038356,120]
[326651955,1715199143619,-2000.0,0.00038356,120]
[326651956,1715199143675,-2000.0,0.00038356,120]
[326651957,1715199143731,-2000.0,0.00038356,120]
[326651958,1715199143788,-2000.0,0.00038356,120]
[326651959,1715199143845,-2000.0,0.00038356,120]
[326651960,1715199143902,-2000.0,0.00038356,120]
[326651961,1715199143959,-2000.0,0.00038356,120]
[326651962,1715199144017,-2000.0,0.00038356,120]
[326651963,1715199144075,-2000.0,0.00038356,120]
[326651964,1715199144134,-359.71805363,0.00038356,120]
[326651965,1715199144194,-883.00567932,0.000389,30]
[326651966,1715199144259,-1000.0,0.00038904,120]
[326651967,1715199145361,-2000.0,0.00039,60]
[326651968,1715199145983,-674.22016985,0.0003998,30]
[326651969,1715199146043,-194.29176272,0.0004,120]
[326651970,1715199146099,-953.63422359,0.0004,90]
[326651971,1715199146158,-313.84357661,0.0004,60]
[326651972,1715199146215,-8000.0,0.0004,120]
[326651973,1715199146270,-5000.0,0.0004,120]
[326651974,1715199146329,-5000.0,0.0004,120]
[326651975,1715199146388,-299.50296526,0.0004001,30]
[326651976,1715199146445,-8000.0,0.0004005,120]
[326651977,1715199146502,-5000.0,0.00040063,120]
[326651978,1715199146558,-8000.0,0.000401,120]
[326651979,1715199146614,-5000.0,0.00040125,120]
[326651980,1715199146669,-8000.0,0.0004015,120]
[326651981,1715199146725,-5000.0,0.00040188,120]
[326651982,1715199146782,-8000.0,0.000402,120]
[326651983,1715199146839,-8000.0,0.0004025,120]